fUST/lending_fUST_20250531
["ID","MTS","AMOUNT","RATE_DAILY","PERIOD"]
[363235076,1748635838769,-500.0,0.00016398,2]
[363235079,1748635838778,-500.0,0.00016398,2]
[363235081,1748635838787,-500.0,0.00016398,2]
[363235083,1748635838799,-500.0,0.00016398,2]
[363235084,1748635838808,-500.0,0.00016398,2]
[363235087,1748635838818,-500.0,0.00016398,2]
[363235089,1748635838827,-500.0,0.00016398,2]
[363235090,1748635838837,-500.0,0.00016398,2]
[363235092,1748635838846,-500.0,0.00016398,2]
[363235094,1748635838855,-500.0,0.00016398,2]
[363235096,1748635838864,-500.0,0.00016398,2]
[363235098,1748635838874,-500.0,0.00016398,2]
[363235101,1748635838884,-7605.35100584,0.000164,2]
[363235102,1748635838894,-160.0,0.00016437,2]
[363235104,1748635838904,-430.0,0.00016438,2]
[363235106,1748635838916,-430.0,0.00016438,2]
[363235108,1748635838926,-430.0,0.00016438,2]
[363235110,1748635838936,-430.0,0.00016438,2]
[363235112,1748635838945,-430.0,0.00016438,2]
[363235114,1748635838955,-172.17559629,0.00016438,2]
[363235116,1748635838964,-430.0,0.00016438,2]
[363235118,1748635838973,-430.0,0.00016438,2]
[363235120,1748635838982,-430.0,0.00016438,2]
[363235122,1748635838991,-430.0,0.00016438,2]
[363235124,1748635839000,-430.0,0.00016438,2]
[363235126,1748635839010,-430.0,0.00016438,2]
[363235128,1748635839019,-430.0,0.00016438,2]
[363235130,1748635839028,-430.0,0.00016438,2]
[363235132,1748635839037,-430.0,0.00016438,2]
[363235134,1748635839047,-1000.0,0.00016438,2]
[363235136,1748635839055,-430.0,0.00016438,2]
[363235138,1748635839065,-430.0,0.00016438,2]
[363235140,1748635839074,-430.0,0.00016438,2]
[363235142,1748635839083,-430.0,0.00016438,2]
[363235144,1748635839093,-430.0,0.00016438,2]
[363235146,1748635839102,-430.0,0.00016438,2]
[363235148,1748635839111,-430.0,0.00016438,2]
[363235150,1748635839120,-430.0,0.00016438,2]
[363235152,1748635839130,-430.0,0.00016438,2]
[363235154,1748635839140,-430.0,0.00016438,2]
[363235156,1748635839149,-430.0,0.00016438,2]
[363235158,1748635839160,-430.0,0.00016438,2]
[363235160,1748635839170,-389.88872956,0.00016438,2]
[363235162,1748635839179,-273.76880648,0.00016438,2]
[363235164,1748635839189,-430.0,0.00016438,2]
[363235166,1748635839198,-259.47891798,0.00016438,2]
[363235168,1748635839207,-510.24,0.00016438,2]
[363235170,1748635839216,-430.0,0.00016438,2]
[363235172,1748635839225,-430.0,0.00016438,2]
[363235174,1748635839235,-430.0,0.00016438,2]
[363235176,1748635839244,-430.0,0.00016438,2]
[363235178,1748635839253,-430.0,0.00016438,2]
[363235180,1748635839262,-430.0,0.00016438,2]
[363235182,1748635839271,-430.0,0.00016438,2]
[363235184,1748635839281,-430.0,0.00016438,2]
[363235186,1748635839291,-463.84749772,0.00016438,2]
[363235188,1748635839300,-430.0,0.00016438,2]
[363235190,1748635839310,-430.0,0.00016438,2]
[363235192,1748635839319,-430.0,0.00016438,2]
[363235194,1748635839329,-430.0,0.00016438,2]
[363235196,1748635839338,-430.0,0.00016438,2]
[363235212,1748635839497,-430.0,0.00016438,2]
[363235215,1748635839510,-430.0,0.00016438,2]
[363235217,1748635839520,-430.0,0.00016438,2]
[363235219,1748635839529,-430.0,0.00016438,2]
[363235221,1748635839539,-430.0,0.00016438,2]
[363235223,1748635839549,-430.0,0.00016438,2]
[363235224,1748635839558,-430.0,0.00016438,2]
[363235226,1748635839568,-430.0,0.00016438,2]
[363235228,1748635839578,-430.0,0.00016438,2]
[363235230,1748635839588,-430.0,0.00016438,2]
[363235233,1748635839598,-430.0,0.00016438,2]
[363235234,1748635839607,-430.0,0.00016438,2]
[363235237,1748635839618,-430.0,0.00016438,2]
[363235238,1748635839627,-430.0,0.00016438,2]
[363235241,1748635839638,-430.0,0.00016438,2]
[363235243,1748635839647,-430.0,0.00016438,2]
[363235245,1748635839656,-430.0,0.00016438,2]
[363235247,1748635839666,-430.0,0.00016438,2]
[363235249,1748635839675,-430.0,0.00016438,2]
[363235251,1748635839685,-430.0,0.00016438,2]
[363235252,1748635839695,-430.0,0.00016438,2]
[363235254,1748635839704,-430.0,0.00016438,2]
[363235256,1748635839715,-430.0,0.00016438,2]
[363235259,1748635839726,-430.0,0.00016438,2]
[363235261,1748635839737,-423.0,0.00016438,2]
[363235263,1748635839747,-430.0,0.00016438,2]
[363235264,1748635839757,-430.0,0.00016438,2]
[363235267,1748635839767,-430.0,0.00016438,2]
[363235268,1748635839776,-430.0,0.00016438,2]
[363235270,1748635839785,-430.0,0.00016438,2]
[363235273,1748635839796,-430.0,0.00016438,2]
[363235275,1748635839805,-430.0,0.00016438,2]
[363235277,1748635839814,-470.0,0.00016438,2]
[363235278,1748635839824,-430.0,0.00016438,2]
[363235280,1748635839833,-430.0,0.00016438,2]
[363235282,1748635839842,-430.0,0.00016438,2]
[363235284,1748635839852,-466.70567793,0.00016438,2]
[363235285,1748635839862,-430.0,0.00016438,2]
[363235286,1748635839871,-430.0,0.00016438,2]
[363235287,1748635839881,-430.0,0.00016438,2]
[363235288,1748635839890,-430.0,0.00016438,2]
[363235289,1748635839899,-430.0,0.00016438,2]
[363235290,1748635839909,-430.0,0.00016438,2]
[363235291,1748635839918,-430.0,0.00016438,2]
[363235292,1748635839929,-430.0,0.00016438,2]
[363235293,1748635839939,-430.0,0.00016438,2]
[363235294,1748635839948,-430.0,0.00016438,2]
[363235295,1748635839957,-430.0,0.00016438,2]
[363235296,1748635839966,-430.0,0.00016438,2]
[363235297,1748635839975,-430.0,0.00016438,2]
[363235299,1748635839984,-430.0,0.00016438,2]
[363235300,1748635839994,-430.0,0.00016438,2]
[363235301,1748635840003,-430.0,0.00016438,2]
[363235302,1748635840012,-430.0,0.00016438,2]
[363235303,1748635840022,-430.0,0.00016438,2]
[363235304,1748635840031,-430.0,0.00016438,2]
[363235305,1748635840040,-731.69,0.00016438,2]
[363235306,1748635840049,-430.0,0.00016438,2]
[363235307,1748635840059,-430.0,0.00016438,2]
[363235309,1748635840068,-430.0,0.00016438,2]
[363235311,1748635840077,-430.0,0.00016438,2]
[363235313,1748635840086,-430.0,0.00016438,2]
[363235315,1748635840096,-430.0,0.00016438,2]
[363235317,1748635840106,-1963.38,0.00016438,2]
[363235319,1748635840115,-378.1520334,0.00016438,2]
[363235321,1748635840124,-1582.1,0.00016438,2]
[363235323,1748635840134,-1854.57,0.00016438,2]
[363235325,1748635840144,-430.0,0.00016438,2]
[363235327,1748635840153,-430.0,0.00016438,2]
[363235330,1748635840162,-430.0,0.00016438,2]
[363235332,1748635840172,-430.0,0.00016438,2]
[363235334,1748635840181,-430.0,0.00016438,2]
[363235336,1748635840190,-430.0,0.00016438,2]
[363235337,1748635840199,-475.3,0.00016438,2]
[363235340,1748635840209,-430.0,0.00016438,2]
[363235341,1748635840218,-430.0,0.00016438,2]
[363235343,1748635840227,-2034.06,0.00016438,2]
[363235345,1748635840236,-430.0,0.00016438,2]
[363235347,1748635840245,-2380.98,0.00016438,2]
[363235349,1748635840254,-430.0,0.00016438,2]
[363235351,1748635840263,-430.0,0.00016438,2]
[363235353,1748635840272,-430.0,0.00016438,2]
[363235355,1748635840281,-430.0,0.00016438,2]
[363235357,1748635840290,-430.0,0.00016438,2]
[363235359,1748635840300,-430.0,0.00016438,2]
[363235361,1748635840309,-430.0,0.00016438,2]
[363235363,1748635840318,-400.0,0.00016438,2]
[363235365,1748635840328,-430.0,0.00016438,2]
[363235367,1748635840337,-1068.09,0.00016438,2]
[363235369,1748635840347,-498.95,0.00016438,2]
[363235371,1748635840357,-430.0,0.00016438,2]
[363235373,1748635840366,-430.0,0.00016438,2]
[363235375,1748635840375,-609.47,0.00016438,2]
[363235377,1748635840385,-851.68,0.00016438,2]
[363235379,1748635840394,-430.0,0.00016438,2]
[363235381,1748635840403,-574.06,0.00016438,2]
[363235383,1748635840412,-430.0,0.00016438,2]
[363235385,1748635840422,-430.0,0.00016438,2]
[363235387,1748635840431,-430.0,0.00016438,2]
[363235389,1748635840441,-430.0,0.00016438,2]
[363235391,1748635840450,-463.68,0.00016438,2]
[363235393,1748635840460,-552.31,0.00016438,2]
[363235395,1748635840470,-1807.85,0.00016438,2]
[363235397,1748635840479,-430.0,0.00016438,2]
[363235399,1748635840488,-430.0,0.00016438,2]
[363235401,1748635840497,-430.0,0.00016438,2]
[363235403,1748635840507,-430.0,0.00016438,2]
[363235405,1748635840515,-430.0,0.00016438,2]
[363235407,1748635840525,-430.0,0.00016438,2]
[363235409,1748635840534,-430.0,0.00016438,2]
[363235411,1748635840543,-430.0,0.00016438,2]
[363235413,1748635840552,-430.0,0.00016438,2]
[363235415,1748635840561,-430.0,0.00016438,2]
[363235417,1748635840570,-430.0,0.00016438,2]
[363235419,1748635840579,-430.0,0.00016438,2]
[363235421,1748635840588,-430.0,0.00016438,2]
[363235423,1748635840597,-430.0,0.00016438,2]
[363235425,1748635840607,-430.0,0.00016438,2]
[363235427,1748635840616,-474.52,0.00016438,2]
[363235429,1748635840625,-2185.77,0.00016438,2]
[363235431,1748635840634,-3714.07,0.00016438,2]
[363235433,1748635840644,-430.0,0.00016438,2]
[363235435,1748635840653,-481.32024323,0.00016438,2]
[363235437,1748635840664,-430.0,0.00016438,2]
[363235439,1748635840675,-430.0,0.00016438,2]
[363235441,1748635840684,-430.0,0.00016438,2]
[363235443,1748635840693,-430.0,0.00016438,2]
[363235445,1748635840702,-430.0,0.00016438,2]
[363235447,1748635840712,-1316.33,0.00016438,2]
[363235449,1748635840724,-430.0,0.00016438,2]
[363235451,1748635840733,-430.0,0.00016438,2]
[363235453,1748635840743,-430.0,0.00016438,2]
[363235454,1748635840752,-601.77,0.00016438,2]
[363235457,1748635840763,-320.0,0.00016438,2]
[363235458,1748635840772,-430.0,0.00016438,2]
[363235460,1748635840781,-430.0,0.00016438,2]
[363235463,1748635840791,-263.67062352,0.00016438,2]
[363235465,1748635840801,-430.0,0.00016438,2]
[363235467,1748635840811,-686.55,0.00016438,2]
[363235469,1748635840820,-430.0,0.00016438,2]
[363235471,1748635840829,-430.0,0.00016438,2]
[363235473,1748635840839,-430.0,0.00016438,2]
[363235475,1748635840848,-430.0,0.00016438,2]
[363235477,1748635840857,-430.0,0.00016438,2]
[363235478,1748635840865,-430.0,0.00016438,2]
[363235480,1748635840875,-1056.64,0.00016438,2]
[363235482,1748635840884,-1572.49,0.00016438,2]
[363235484,1748635840893,-430.0,0.00016438,2]
[363235486,1748635840902,-430.0,0.00016438,2]
[363235488,1748635840910,-430.0,0.00016438,2]
[363235490,1748635840924,-430.0,0.00016438,2]
[363235492,1748635840933,-430.0,0.00016438,2]
[363235494,1748635840943,-524.59,0.00016438,2]
[363235496,1748635840952,-430.0,0.00016438,2]
[363235498,1748635840961,-430.0,0.00016438,2]
[363235500,1748635840971,-430.0,0.00016438,2]
[363235502,1748635840981,-430.0,0.00016438,2]
[363235504,1748635840990,-1072.58,0.00016438,2]
[363235506,1748635840999,-430.0,0.00016438,2]
[363235508,1748635841009,-430.0,0.00016438,2]
[363235510,1748635841018,-430.0,0.00016438,2]
[363235512,1748635841027,-430.0,0.00016438,2]
[363235514,1748635841036,-548.48842799,0.00016438,2]
[363235516,1748635841045,-1322.33,0.00016438,2]
[363235518,1748635841054,-430.0,0.00016438,2]
[363235520,1748635841063,-236.91088962,0.00016438,2]
[363235522,1748635841072,-430.0,0.00016438,2]
[363235524,1748635841081,-430.0,0.00016438,2]
[363235526,1748635841090,-699.53,0.00016438,2]
[363235528,1748635841099,-430.0,0.00016438,2]
[363235530,1748635841107,-430.0,0.00016438,2]
[363235532,1748635841116,-430.0,0.00016438,2]
[363235534,1748635841125,-430.0,0.00016438,2]
[363235536,1748635841135,-430.0,0.00016438,2]
[363235538,1748635841144,-430.0,0.00016438,2]
[363235540,1748635841153,-911.15,0.00016438,2]
[363235542,1748635841163,-430.0,0.00016438,2]
[363235544,1748635841171,-430.0,0.00016438,2]
[363235545,1748635841179,-430.0,0.00016438,2]
[363235547,1748635841189,-430.0,0.00016438,2]
[363235549,1748635841198,-430.0,0.00016438,2]
[363235551,1748635841207,-430.0,0.00016438,2]
[363235553,1748635841217,-430.0,0.00016438,2]
[363235555,1748635841226,-1160.01,0.00016438,2]
[363235557,1748635841235,-430.0,0.00016438,2]
[363235559,1748635841244,-430.0,0.00016438,2]
[363235561,1748635841254,-417.44316136,0.00016438,2]
[363235563,1748635841264,-430.0,0.00016438,2]
[363235565,1748635841273,-362.0,0.00016595,2]
[363235567,1748635841283,-304.0,0.00016595,2]
[363235569,1748635841293,-373.0,0.00016595,2]
[363235571,1748635841302,-420.0,0.00016595,2]
[363235573,1748635841311,-300.0,0.00016595,2]
[363235575,1748635841321,-3739.66550012,0.00016612,2]
[363235577,1748635841330,-1200.0,0.00016677,2]
[363235579,1748635841339,-847.75,0.00016702,3]
[363235581,1748635841348,-181.522119,0.00016703,2]
[363235583,1748635841358,-430.0,0.00016712,2]
[363235585,1748635841367,-430.0,0.00016712,2]
[363235587,1748635841377,-430.0,0.00016712,2]
[363235590,1748635841387,-430.0,0.00016712,2]
[363235591,1748635841396,-430.0,0.00016712,2]
[363235593,1748635841405,-430.0,0.00016712,2]
[363235596,1748635841417,-430.0,0.00016712,2]
[363235597,1748635841427,-731.69,0.00016712,2]
[363235599,1748635841436,-430.0,0.00016712,2]
[363235601,1748635841445,-430.0,0.00016712,2]
[363235603,1748635841454,-1963.38,0.00016712,2]
[363235605,1748635841464,-1582.1,0.00016712,2]
[363235607,1748635841474,-1854.57,0.00016712,2]
[363235609,1748635841483,-430.0,0.00016712,2]
[363235611,1748635841493,-430.0,0.00016712,2]
[363235613,1748635841502,-430.0,0.00016712,2]
[363235615,1748635841511,-430.0,0.00016712,2]
[363235617,1748635841521,-475.3,0.00016712,2]
[363235619,1748635841530,-430.0,0.00016712,2]
[363235621,1748635841539,-430.0,0.00016712,2]
[363235623,1748635841549,-2034.06,0.00016712,2]
[363235625,1748635841558,-2380.98,0.00016712,2]
[363235627,1748635841568,-430.0,0.00016712,2]
[363235629,1748635841577,-430.0,0.00016712,2]
[363235631,1748635841586,-430.0,0.00016712,2]
[363235633,1748635841596,-1068.09,0.00016712,2]
[363235635,1748635841606,-498.95,0.00016712,2]
[363235638,1748635841616,-609.47,0.00016712,2]
[363235640,1748635841626,-851.68,0.00016712,2]
[363235642,1748635841636,-574.06,0.00016712,2]
[363235644,1748635841645,-430.0,0.00016712,2]
[363235646,1748635841654,-430.0,0.00016712,2]
[363235647,1748635841664,-463.68,0.00016712,2]
[363235650,1748635841674,-1807.85,0.00016712,2]
[363235652,1748635841684,-430.0,0.00016712,2]
[363235653,1748635841693,-430.0,0.00016712,2]
[363235655,1748635841703,-430.0,0.00016712,2]
[363235658,1748635841713,-430.0,0.00016712,2]
[363235660,1748635841726,-430.0,0.00016712,2]
[363235661,1748635841735,-447.52,0.00016712,2]
[363235663,1748635841745,-474.52,0.00016712,2]
[363235665,1748635841756,-2185.77,0.00016712,2]
[363235668,1748635841768,-3714.07,0.00016712,2]
[363235670,1748635841777,-477.38,0.00016712,2]
[363235672,1748635841787,-282.30220184,0.00016712,2]
[363235674,1748635841797,-1316.33,0.00016712,2]
[363235676,1748635841807,-601.77,0.00016712,2]
[363235678,1748635841816,-686.55,0.00016712,2]
[363235680,1748635841825,-576.8,0.00016712,2]
[363235682,1748635841834,-533.82,0.00016712,2]
[363235684,1748635841843,-1056.64,0.00016712,2]
[363235686,1748635841853,-1572.49,0.00016712,2]
[363235688,1748635841863,-430.0,0.00016712,2]
[363235690,1748635841873,-430.0,0.00016712,2]
[363235692,1748635841882,-430.0,0.00016712,2]
[363235694,1748635841892,-430.0,0.00016712,2]
[363235696,1748635841903,-430.0,0.00016712,2]
[363235698,1748635841912,-1072.58,0.00016712,2]
[363235700,1748635841923,-430.0,0.00016712,2]
[363235702,1748635841932,-430.0,0.00016712,2]
[363235703,1748635841942,-3452.2,0.00016712,2]
[363235705,1748635841951,-3452.2,0.00016712,2]
[363235707,1748635841960,-1322.33,0.00016712,2]
[363235709,1748635841970,-430.0,0.00016712,2]
[363235711,1748635841979,-699.53,0.00016712,2]
[363235713,1748635841988,-430.0,0.00016712,2]
[363235715,1748635841998,-430.0,0.00016712,2]
[363235718,1748635842008,-430.0,0.00016712,2]
[363235720,1748635842017,-911.15,0.00016712,2]
[363235722,1748635842027,-430.0,0.00016712,2]
[363235724,1748635842036,-430.0,0.00016712,2]
[363235726,1748635842045,-430.0,0.00016712,2]
[363235728,1748635842054,-430.0,0.00016712,2]
[363235730,1748635842063,-430.0,0.00016712,2]
[363235732,1748635842074,-1160.01,0.00016712,2]
[363235734,1748635842083,-442.38,0.00016986,2]
[363235736,1748635842092,-430.0,0.00016986,2]
[363235738,1748635842101,-430.0,0.00016986,2]
[363235740,1748635842110,-430.0,0.00016986,2]
[363235742,1748635842120,-430.0,0.00016986,2]
[363235744,1748635842129,-731.69,0.00016986,2]
[363235746,1748635842138,-430.0,0.00016986,2]
[363235748,1748635842147,-1963.38,0.00016986,2]
[363235750,1748635842156,-1582.1,0.00016986,2]
[363235752,1748635842165,-1854.57,0.00016986,2]
[363235754,1748635842175,-265.95112797,0.00016986,2]
[363235756,1748635842184,-430.0,0.00016986,2]
[363235758,1748635842193,-430.0,0.00016986,2]
[363235760,1748635842203,-475.3,0.00016986,2]
[363235761,1748635842212,-430.0,0.00016986,2]
[363235764,1748635842221,-430.0,0.00016986,2]
[363235766,1748635842231,-2034.06,0.00016986,2]
[363235767,1748635842240,-2380.98,0.00016986,2]
[363235782,1748635842365,-430.0,0.00016986,2]
[363235784,1748635842375,-430.0,0.00016986,2]
[363235786,1748635842384,-430.0,0.00016986,2]
[363235788,1748635842393,-1068.09,0.00016986,2]
[363235790,1748635842403,-498.95,0.00016986,2]
[363235792,1748635842412,-609.47,0.00016986,2]
[363235794,1748635842423,-851.68,0.00016986,2]
[363235796,1748635842432,-574.06,0.00016986,2]
[363235798,1748635842441,-430.0,0.00016986,2]
[363235800,1748635842451,-430.0,0.00016986,2]
[363235801,1748635842460,-463.68,0.00016986,2]
[363235802,1748635842469,-1807.85,0.00016986,2]
[363235803,1748635842478,-430.0,0.00016986,2]
[363235804,1748635842486,-474.52,0.00016986,2]
[363235805,1748635842495,-2185.77,0.00016986,2]
[363235806,1748635842504,-3714.07,0.00016986,2]
[363235807,1748635842513,-1316.33,0.00016986,2]
[363235808,1748635842522,-601.77,0.00016986,2]
[363235809,1748635842530,-686.55,0.00016986,2]
[363235810,1748635842539,-1056.64,0.00016986,2]
[363235811,1748635842548,-1572.49,0.00016986,2]
[363235812,1748635842557,-430.0,0.00016986,2]
[363235813,1748635842566,-430.0,0.00016986,2]
[363235814,1748635842575,-430.0,0.00016986,2]
[363235815,1748635842587,-430.0,0.00016986,2]
[363235816,1748635842596,-430.0,0.00016986,2]
[363235817,1748635842605,-1072.58,0.00016986,2]
[363235818,1748635842614,-430.0,0.00016986,2]
[363235819,1748635842623,-430.0,0.00016986,2]
[363235820,1748635842632,-1322.33,0.00016986,2]
[363235821,1748635842641,-509.3,0.00016986,2]
[363235822,1748635842650,-699.53,0.00016986,2]
[363235823,1748635842659,-430.0,0.00016986,2]
[363235825,1748635842669,-430.0,0.00016986,2]
[363235826,1748635842679,-430.0,0.00016986,2]
[363235827,1748635842688,-911.15,0.00016986,2]
[363235828,1748635842697,-430.0,0.00016986,2]
[363235830,1748635842707,-430.0,0.00016986,2]
[363235832,1748635842719,-430.0,0.00016986,2]
[363235834,1748635842729,-1160.01,0.00016986,2]
[363235837,1748635842741,-4528.96,0.00017049,2]
[363235839,1748635842752,-3739.66550011,0.00017092,2]
[363235841,1748635842762,-500.0,0.00017095,2]
[363235843,1748635842772,-500.0,0.00017095,2]
[363235845,1748635842782,-500.0,0.00017095,2]
[363235847,1748635842792,-160.15275943,0.00017095,2]
[363235849,1748635842804,-503.02041151,0.00017105,2]
[363235851,1748635842813,-500.0,0.00017105,2]
[363235853,1748635842823,-500.0,0.00017105,2]
[363235855,1748635842834,-500.0,0.00017105,2]
[363235857,1748635842845,-508.06183039,0.00017105,2]
[363235859,1748635842855,-549.40032849,0.00017105,2]
[363235861,1748635842864,-255.7107598,0.00017105,2]
[363235863,1748635842873,-500.0,0.00017105,2]
[363235865,1748635842884,-500.0,0.00017105,2]
[363235867,1748635842893,-500.0,0.00017105,2]
[363235869,1748635842902,-500.0,0.00017105,2]
[363235871,1748635842911,-500.0,0.00017105,2]
[363235873,1748635842922,-500.0,0.00017135,2]
[363235875,1748635842931,-500.0,0.00017135,2]
[363235877,1748635842940,-500.0,0.00017157,2]
[363235879,1748635842949,-500.0,0.00017157,2]
[363235881,1748635842958,-500.0,0.00017157,2]
[363235883,1748635842967,-532.98731685,0.00017157,2]
[363235885,1748635842977,-500.0,0.00017205,2]
[363235887,1748635842986,-214.87289702,0.00017258,2]
[363235889,1748635842996,-500.0,0.00017259,2]
[363235891,1748635843005,-730.02342444,0.00017259,2]
[363235893,1748635843014,-730.02342444,0.00017259,2]
[363235895,1748635843023,-500.0,0.00017259,2]
[363235897,1748635843032,-730.02342444,0.00017259,2]
[363235899,1748635843041,-730.02342444,0.00017259,2]
[363235901,1748635843050,-730.02342444,0.00017259,2]
[363235903,1748635843060,-500.0,0.00017259,2]
[363235905,1748635843069,-730.02342444,0.00017259,2]
[363235907,1748635843078,-500.0,0.00017259,2]
[363235909,1748635843087,-730.02342444,0.00017259,2]
[363235911,1748635843098,-730.02342444,0.00017259,2]
[363235913,1748635843107,-730.02342444,0.00017259,2]
[363235915,1748635843117,-243.14115527,0.00017259,2]
[363235917,1748635843126,-730.02342444,0.00017259,2]
[363235919,1748635843135,-730.02342444,0.00017259,2]
[363235922,1748635843145,-730.02342444,0.00017259,2]
[363235924,1748635843154,-730.02342444,0.00017259,2]
[363235926,1748635843163,-730.02342444,0.00017259,2]
[363235927,1748635843173,-730.02342444,0.00017259,2]
[363235930,1748635843183,-730.02342444,0.00017259,2]
[363235932,1748635843192,-730.02342444,0.00017259,2]
[363235933,1748635843201,-730.02342444,0.00017259,2]
[363235935,1748635843210,-1611.62151771,0.00017259,2]
[363235937,1748635843220,-1611.62151771,0.00017259,2]
[363235939,1748635843229,-1611.62151771,0.00017259,2]
[363235942,1748635843238,-1611.62151771,0.00017259,2]
[363235943,1748635843247,-1611.62151771,0.00017259,2]
[363235945,1748635843256,-1611.62151771,0.00017259,2]
[363235947,1748635843265,-1611.62151771,0.00017259,2]
[363235949,1748635843274,-1611.62151771,0.00017259,2]
[363235951,1748635843283,-430.0,0.0001726,2]
[363235953,1748635843292,-430.0,0.0001726,2]
[363235955,1748635843301,-430.0,0.0001726,2]
[363235957,1748635843310,-430.0,0.0001726,2]
[363235959,1748635843319,-731.69,0.0001726,2]
[363235961,1748635843328,-430.0,0.0001726,2]
[363235963,1748635843337,-1963.38,0.0001726,2]
[363235965,1748635843347,-1582.1,0.0001726,2]
[363235967,1748635843356,-1854.57,0.0001726,2]
[363235969,1748635843365,-430.0,0.0001726,2]
[363235971,1748635843374,-430.0,0.0001726,2]
[363235973,1748635843383,-475.3,0.0001726,2]
[363235975,1748635843393,-430.0,0.0001726,2]
[363235977,1748635843403,-430.0,0.0001726,2]
[363235979,1748635843413,-2034.06,0.0001726,2]
[363235981,1748635843424,-2380.98,0.0001726,2]
[363235983,1748635843433,-430.0,0.0001726,2]
[363235985,1748635843443,-430.0,0.0001726,2]
[363235987,1748635843452,-430.0,0.0001726,2]
[363235989,1748635843462,-1068.09,0.0001726,2]
[363235991,1748635843471,-498.95,0.0001726,2]
[363235993,1748635843480,-609.47,0.0001726,2]
[363235995,1748635843490,-851.68,0.0001726,2]
[363235997,1748635843499,-574.06,0.0001726,2]
[363236000,1748635843509,-430.0,0.0001726,2]
[363236002,1748635843518,-430.0,0.0001726,2]
[363236004,1748635843528,-463.68,0.0001726,2]
[363236007,1748635843537,-1807.85,0.0001726,2]
[363236009,1748635843547,-430.0,0.0001726,2]
[363236011,1748635843556,-474.52,0.0001726,2]
[363236013,1748635843566,-2185.77,0.0001726,2]
[363236014,1748635843576,-3714.07,0.0001726,2]
[363236017,1748635843586,-1316.33,0.0001726,2]
[363236019,1748635843596,-601.77,0.0001726,2]
[363236021,1748635843606,-686.55,0.0001726,2]
[363236023,1748635843615,-1056.64,0.0001726,2]
[363236024,1748635843625,-1572.49,0.0001726,2]
[363236027,1748635843634,-430.0,0.0001726,2]
[363236029,1748635843648,-430.0,0.0001726,2]
[363236031,1748635843662,-430.0,0.0001726,2]
[363236034,1748635843677,-430.0,0.0001726,2]
[363236036,1748635843689,-430.0,0.0001726,2]
[363236038,1748635843701,-1072.58,0.0001726,2]
[363236041,1748635843713,-430.0,0.0001726,2]
[363236043,1748635843728,-430.0,0.0001726,2]
[363236045,1748635843740,-1322.33,0.0001726,2]
[363236048,1748635843753,-699.53,0.0001726,2]
[363236050,1748635843766,-430.0,0.0001726,2]
[363236052,1748635843779,-430.0,0.0001726,2]
[363236054,1748635843792,-430.0,0.0001726,2]
[363236057,1748635843805,-911.15,0.0001726,2]
[363236059,1748635843818,-430.0,0.0001726,2]